bitfinex/quotes_SOLUSD_20241125
["timestamp","ask_amount","ask_price","bid_price","bid_amount"]
[1732563366250,23.776884,239.85,239.64,14.00590221]
[1732563366251,20.0,239.82,239.73,14.00590221]
[1732563367879,20.0,239.82,239.75,14.00590221]
[1732563368080,20.0,239.82,239.65,0.12549]
[1732563368081,20.0,239.87,239.77,14.00590221]
[1732563368386,23.776884,239.86,239.77,14.00590221]
[1732563368562,20.0,239.87,239.77,14.00590221]
[1732563368759,23.776884,239.9,239.77,14.00590221]
[1732563368960,23.776884,239.92,239.81,14.00590221]
[1732563369171,16.0251,239.93,239.83,14.00590221]
[1732563369555,70.0,239.9,239.7,20.0]
[1732563369760,70.0,239.9,239.75,14.00590221]
[1732563370465,20.0,239.86,239.75,14.00590221]
[1732563370669,23.776884,239.89,239.79,14.00590221]
[1732563370866,86.0251,239.93,239.81,14.00590221]
[1732563371271,16.0251,239.93,239.83,14.00590221]
[1732563371467,16.0251,239.93,239.85,14.00590221]
[1732563371663,16.0251,239.93,239.8,14.00590221]
[1732563372069,70.0,239.92,239.74,14.00590221]
[1732563372570,70.0,239.92,239.71,4.1717]
[1732563372571,70.0,239.87,239.63,10.4324]
[1732563372772,70.0,239.87,239.72,14.00590221]
[1732563372773,23.776884,239.86,239.72,14.00590221]
[1732563373283,23.776884,239.82,239.72,14.00590221]
[1732563373488,23.776884,239.82,239.7,14.00590221]
[1732563374874,20.0,239.79,239.67,14.00590221]
[1732563375181,15.8448,239.78,239.67,14.00590221]
[1732563375586,30.155484,239.77,239.63,18.17890221]
[1732563375963,20.0,239.74,239.61,14.00590221]
[1732563376257,93.776884,239.73,239.59,14.00590221]
[1732563376460,93.776884,239.73,239.55,14.00590221]
[1732563376461,20.0,239.66,239.55,14.00590221]
[1732563376681,16.0925,239.65,239.55,14.00590221]
[1732563376867,16.0925,239.65,239.53,14.00590221]
[1732563377060,16.0925,239.65,239.55,14.00590221]
[1732563377258,16.0925,239.65,239.53,14.00590221]
[1732563378066,16.0925,239.65,239.6,0.4764682]
[1732563379588,23.776884,239.64,239.6,0.4764682]
[1732563379758,16.0925,239.65,239.6,0.4764682]
[1732563380567,23.776884,239.64,239.6,0.4764682]
[1732563380764,16.0925,239.65,239.6,0.4764682]
[1732563381392,23.776884,239.64,239.6,0.4764682]
[1732563382268,16.0925,239.65,239.6,0.4764682]
[1732563384075,23.776884,239.64,239.6,0.4764682]
[1732563384392,23.776884,239.64,239.47,6.4698]
[1732563384393,43.776884,239.6,239.47,14.00590221]
[1732563384609,38.784784,239.57,239.39,4.1772]
[1732563384772,20.0,239.54,239.43,14.00590221]
[1732563384976,23.776884,239.53,239.41,14.00590221]
[1732563385995,15.0079,239.57,239.45,14.00590221]
[1732563386293,20.0,239.54,239.47,14.00590221]
[1732563386493,15.0079,239.57,239.49,14.00590221]
[1732563386797,15.0079,239.57,239.47,14.00590221]
[1732563386983,15.0079,239.57,239.49,14.00590221]
[1732563387187,15.0079,239.57,239.41,23.776884]
[1732563387480,20.0,239.49,239.39,14.00590221]
[1732563387870,20.0,239.49,239.41,14.00590221]
[1732563388672,20.0,239.54,239.43,14.00590221]
[1732563388881,20.0,239.5,239.43,14.00590221]
[1732563389288,15.0079,239.57,239.45,14.00590221]
[1732563389599,20.0,239.54,239.42,14.00590221]
[1732563389770,20.0,239.54,239.44,14.00590221]
[1732563389974,23.776884,239.56,239.46,14.00590221]
[1732563390284,15.0079,239.57,239.48,14.00590221]
[1732563390590,15.0079,239.57,239.46,14.00590221]
[1732563391096,15.0079,239.57,239.46,14.07037838]
[1732563391304,15.0079,239.57,239.44,14.07037838]
[1732563391305,23.776884,239.56,239.44,14.07037838]
[1732563391594,23.776884,239.54,239.38,14.07037838]
[1732563391808,20.0,239.49,239.36,14.54684658]
[1732563392098,53.776884,239.47,239.36,0.4764682]
[1732563393597,53.776884,239.47,239.37,14.07037838]
[1732563394099,30.0,239.47,239.39,14.07037838]
[1732563394300,30.0,239.47,239.41,14.07037838]
[1732563394475,23.776884,239.52,239.42,14.07037838]
[1732563395192,70.0,239.55,239.36,20.4764682]
[1732563395379,20.0,239.52,239.38,14.07037838]
[1732563395578,20.0,239.52,239.39,14.07037838]
[1732563395808,20.0,239.52,239.4,14.07037838]
[1732563396186,20.0,239.52,239.39,14.07037838]
[1732563396494,20.0,239.48,239.39,14.07037838]
[1732563396801,15.0079,239.57,239.45,14.07037838]
[1732563397298,15.0079,239.57,239.46,14.07037838]
[1732563397597,15.0079,239.57,239.47,14.07037838]
[1732563397979,15.0079,239.57,239.4,14.07037838]
[1732563397980,15.0079,239.57,239.46,14.07037838]
[1732563398177,15.0079,239.57,239.43,14.07037838]
[1732563398377,15.0079,239.57,239.42,14.07037838]
[1732563398705,70.0,239.55,239.39,14.07037838]
[1732563398879,20.0,239.52,239.38,14.07037838]
[1732563399074,20.0,239.52,239.37,14.07037838]
[1732563399276,20.0,239.48,239.36,14.54684658]
[1732563399480,20.0,239.43,239.36,0.4764682]
[1732563399683,20.0,239.39,239.36,0.4764682]
[1732563402496,23.776884,239.42,239.36,0.4764682]
[1732563402803,20.0,239.39,239.36,0.4764682]
[1732563404804,30.0,239.46,239.37,14.08947787]
[1732563404986,30.0,239.46,239.38,14.08947787]
[1732563405810,30.0,239.46,239.4,14.08947787]
[1732563406019,30.0,239.46,239.43,14.08947787]
[1732563406183,10.13452015,239.52,239.44,14.08947787]
[1732563406387,10.13452015,239.52,239.42,14.08947787]
[1732563406600,10.13452015,239.52,239.4,14.08947787]
[1732563406803,10.13452015,239.52,239.37,14.08947787]
[1732563407102,10.13452015,239.52,239.36,0.4764682]
[1732563407607,93.776884,239.51,239.36,0.4764682]
[1732563407986,90.0,239.46,239.36,0.4764682]
[1732563408185,20.0,239.42,239.36,0.4764682]
[1732563408910,30.0,239.45,239.36,0.4764682]
[1732563409811,20.0,239.41,239.36,0.4764682]
[1732563410005,35.4061,239.41,239.36,0.4764682]
[1732563410389,23.776884,239.4,239.36,0.4764682]
[1732563410806,20.0,239.37,239.36,0.4764682]
[1732563411087,43.776884,239.37,239.36,0.4764682]
[1732563411295,20.0,239.33,239.21,14.08947787]
[1732563412116,16.3512,239.31,239.19,14.08947787]
[1732563412791,16.3512,239.31,239.23,14.08947787]
[1732563413416,30.0,239.3,239.21,14.08947787]
[1732563413792,30.0,239.3,239.22,14.08947787]
[1732563414006,30.0,239.3,239.23,14.08947787]
[1732563414211,16.3512,239.31,239.26,14.08947787]
[1732563414395,16.3512,239.31,239.23,14.08947787]
[1732563415098,16.3512,239.31,239.22,14.08947787]
[1732563415300,16.3512,239.31,239.13,37.0356]
[1732563415301,16.3512,239.31,239.21,14.08947787]
[1732563415502,20.0,239.28,239.19,14.08947787]
[1732563415699,16.3512,239.31,239.21,14.08947787]
[1732563415893,20.0,239.28,239.21,14.08947787]
[1732563416106,20.0,239.28,239.22,14.08947787]
[1732563416309,16.3512,239.31,239.24,14.08947787]
[1732563416687,20.0,239.35,239.28,14.08947787]
[1732563417021,15.006,239.37,239.26,14.08947787]
[1732563417188,15.006,239.37,239.28,14.08947787]
[1732563417511,15.006,239.37,239.31,14.08947787]
[1732563417688,15.006,239.37,239.32,14.08947787]
[1732563417889,15.006,239.37,239.26,20.0]
[1732563418196,15.006,239.37,239.26,34.08947787]
[1732563418399,15.006,239.37,239.28,14.08947787]
[1732563419302,15.006,239.37,239.26,14.08947787]
[1732563419814,15.006,239.37,239.28,14.08947787]
[1732563420198,15.006,239.37,239.31,14.08947787]
[1732563420399,15.006,239.37,239.25,24.1797]
[1732563420400,15.006,239.37,239.32,14.08947787]
[1732563420605,6.0227,239.44,239.33,14.08947787]
[1732563420606,16.1555,239.43,239.33,14.08947787]
[1732563420908,16.1555,239.43,239.34,14.08947787]
[1732563421108,16.1555,239.43,239.36,14.08947787]
[1732563421319,15.4526,239.5,239.39,14.08947787]
[1732563421490,15.4526,239.5,239.4,14.08947787]
[1732563421907,15.4526,239.5,239.3,6.3552]
[1732563421908,15.4526,239.5,239.43,14.08947787]
[1732563422112,15.4526,239.5,239.41,14.08947787]
[1732563422304,15.4526,239.5,239.4,14.08947787]
[1732563422504,15.4526,239.5,239.43,14.08947787]
[1732563422693,15.4526,239.5,239.38,14.08947787]
[1732563422892,15.4526,239.5,239.4,14.08947787]
[1732563423306,15.4526,239.5,239.44,14.08947787]
[1732563423700,10.13452015,239.52,239.44,14.08947787]
[1732563423910,10.13452015,239.52,239.42,14.08947787]
[1732563424513,10.13452015,239.52,239.38,14.08947787]
[1732563424902,20.0,239.49,239.38,14.08947787]
[1732563425100,20.0,239.49,239.4,14.08947787]
[1732563425503,10.13452015,239.52,239.43,14.08947787]
[1732563425717,10.13452015,239.52,239.46,14.08947787]
[1732563425919,10.13452015,239.52,239.44,14.08947787]
[1732563426294,10.13452015,239.52,239.42,14.08947787]
[1732563426593,10.13452015,239.52,239.4,4.1769]
[1732563426797,10.13452015,239.52,239.42,14.08947787]
[1732563427000,10.13452015,239.52,239.4,14.08947787]
[1732563427715,20.0,239.49,239.42,14.08947787]
[1732563428497,10.13452015,239.52,239.42,14.08947787]
[1732563429022,10.13452015,239.52,239.45,14.08947787]
[1732563429813,10.13452015,239.52,239.41,14.08947787]
[1732563430121,10.13452015,239.52,239.44,14.08947787]
[1732563431409,10.13452015,239.52,239.46,14.08947787]
[1732563431619,10.13452015,239.52,239.45,14.08947787]
[1732563431798,10.13452015,239.52,239.44,14.08947787]
[1732563432509,10.13452015,239.52,239.45,14.08947787]
[1732563433121,10.13452015,239.52,239.46,14.08947787]
[1732563433618,10.13452015,239.52,239.44,14.08947787]
[1732563434123,10.13452015,239.52,239.45,14.08947787]
[1732563434328,10.13452015,239.52,239.46,14.08947787]
[1732563434527,10.13452015,239.52,239.44,14.08947787]
[1732563434725,20.0,239.49,239.4,14.08947787]
[1732563435111,20.0,239.49,239.41,14.08947787]
[1732563435331,20.0,239.49,239.4,14.08947787]
[1732563435510,20.0,239.49,239.35,14.08947787]
[1732563435709,15.1763,239.47,239.33,14.08947787]
[1732563435928,20.0,239.4,239.29,14.08947787]
[1732563436230,20.0,239.36,239.26,14.08947787]
[1732563436430,16.4167,239.35,239.26,14.08947787]
[1732563436621,16.4167,239.35,239.24,14.08947787]
[1732563436806,30.0,239.34,239.24,14.08947787]
[1732563437011,20.0,239.31,239.22,14.08947787]
[1732563437208,23.776884,239.33,239.21,14.08947787]
[1732563437421,20.0,239.3,239.2,14.08947787]
[1732563437631,20.0,239.3,239.21,14.08947787]
[1732563437939,20.0,239.3,239.22,14.08947787]
[1732563438313,20.0,239.3,239.23,14.08947787]
[1732563438826,20.0,239.3,239.22,14.09867426]
[1732563439005,20.0,239.3,239.23,14.09867426]
[1732563439205,20.0,239.3,239.22,14.09867426]
[1732563439738,20.0,239.31,239.25,14.09867426]
[1732563439925,20.0,239.31,239.24,14.09867426]
[1732563440238,20.0,239.31,239.18,23.776884]
[1732563440239,20.0,239.31,239.23,14.09867426]
[1732563440415,20.0,239.31,239.21,14.09867426]
[1732563440621,20.0,239.31,239.17,4.181]
[1732563440622,20.0,239.31,239.24,14.09867426]
[1732563441309,20.0,239.31,239.26,14.09867426]
[1732563441537,36.4397,239.34,239.28,14.09867426]
[1732563441713,30.0,239.34,239.28,14.09867426]
[1732563441916,30.0,239.34,239.29,14.09867426]
[1732563442131,30.0,239.34,239.33,14.09867426]
[1732563442433,15.3752,239.42,239.33,14.09867426]
[1732563442613,15.3752,239.42,239.35,14.09867426]
[1732563442806,15.3752,239.42,239.36,14.09867426]
[1732563443029,15.3752,239.42,239.35,14.09867426]
[1732563443416,15.3752,239.42,239.34,14.09867426]
[1732563443727,15.3752,239.42,239.35,14.09867426]
[1732563443926,30.0,239.36,239.34,14.09867426]
[1732563444415,30.0,239.36,239.32,14.09867426]
[1732563444620,30.0,239.36,239.3,14.09867426]
[1732563445714,30.0,239.35,239.3,14.09867426]
[1732563445911,30.0,239.35,239.34,14.09867426]
[1732563446120,15.3752,239.42,239.34,14.09867426]
[1732563446331,15.3752,239.42,239.36,14.09867426]
[1732563446635,15.3752,239.42,239.34,14.09867426]
[1732563446839,15.3752,239.42,239.35,14.09867426]
[1732563447835,15.3752,239.42,239.35,14.08294478]
[1732563448222,15.2306,239.48,239.39,14.08294478]
[1732563448518,15.2306,239.48,239.42,14.08294478]
[1732563448730,15.2306,239.48,239.43,14.08294478]
[1732563448917,8.32350643,239.5,239.44,14.08294478]
[1732563449639,8.32350643,239.5,239.42,14.08294478]
[1732563449831,8.32350643,239.5,239.43,14.08294478]
[1732563450024,8.32350643,239.5,239.45,14.08294478]
[1732563450731,8.32350643,239.5,239.46,14.08294478]
[1732563453634,8.32350643,239.5,239.44,14.08294478]
[1732563453819,8.32350643,239.5,239.42,14.08294478]
[1732563454027,8.32350643,239.5,239.38,18.26034478]
[1732563454226,20.0,239.47,239.36,18.26054478]
[1732563457438,20.0,239.47,239.38,14.08294478]
[1732563458322,8.32350643,239.5,239.42,14.08294478]
[1732563458529,8.32350643,239.5,239.44,14.08294478]
[1732563458843,8.32350643,239.5,239.46,14.08294478]
[1732563459539,8.32350643,239.5,239.46,18.25884478]
[1732563460040,8.32350643,239.5,239.48,14.08294478]
[1732563461272,8.32350643,239.5,239.49,14.08294478]
[1732563461533,16.2029,239.59,239.5,4.1753]
[1732563461837,16.1941,239.64,239.55,14.08294478]
[1732563462237,16.1941,239.64,239.53,14.08294478]
[1732563462423,16.1941,239.64,239.54,14.08294478]
[1732563462740,16.1941,239.64,239.53,14.08294478]
[1732563463542,16.1941,239.64,239.51,14.08294478]
[1732563463733,16.1941,239.64,239.49,14.08294478]
[1732563464040,16.1941,239.64,239.46,4.176]
[1732563464041,20.0,239.6,239.46,14.08294478]
[1732563464260,20.0,239.6,239.44,18.25914478]
[1732563464261,20.0,239.56,239.44,18.25914478]
[1732563464565,20.0,239.56,239.44,14.08294478]
[1732563465127,20.0,239.56,239.41,4.1768]
[1732563465128,20.0,239.56,239.42,14.08294478]
[1732563465332,26.5253,239.56,239.42,14.08294478]
[1732563466047,26.5253,239.56,239.44,14.08294478]
[1732563466253,26.5253,239.56,239.48,14.08294478]
[1732563466424,6.5253,239.56,239.48,14.08294478]
[1732563467948,6.5253,239.56,239.46,14.08294478]
[1732563468633,6.5253,239.56,239.42,14.08294478]
[1732563468820,20.0,239.53,239.42,14.08294478]
[1732563469023,20.0,239.52,239.43,14.08294478]
[1732563469427,20.0,239.52,239.44,14.08294478]
[1732563469946,16.2161,239.55,239.47,14.08294478]
[1732563470431,16.2161,239.55,239.49,14.08294478]
[1732563470744,16.2161,239.55,239.48,14.08294478]
[1732563471837,16.2161,239.55,239.47,14.08294478]
[1732563474158,16.2161,239.55,239.49,14.08294478]
[1732563474356,16.3927,239.6,239.53,14.08294478]
[1732563474561,16.3927,239.6,239.54,14.08294478]
[1732563476148,20.0,239.63,239.55,14.08294478]
[1732563476763,16.5604,239.66,239.55,14.08294478]
[1732563477064,16.5604,239.66,239.59,14.08294478]
[1732563477449,16.5604,239.66,239.57,14.08294478]
[1732563477652,16.5604,239.66,239.53,14.08294478]
[1732563477852,16.5604,239.66,239.54,14.08294478]
[1732563478042,16.5604,239.66,239.55,14.08294478]
[1732563479255,16.5604,239.66,239.56,14.08294478]
[1732563480352,16.5604,239.66,239.6,14.08294478]
[1732563480771,16.5604,239.66,239.62,14.08294478]
[1732563480937,16.5604,239.66,239.53,10.0]
[1732563480938,15.0396,239.71,239.63,14.08294478]
[1732563481353,15.0396,239.71,239.56,14.61]
[1732563481354,15.0396,239.71,239.62,14.08294478]
[1732563481736,15.0396,239.71,239.63,14.08294478]
[1732563482136,15.0396,239.71,239.61,14.08294478]
[1732563482341,15.0396,239.71,239.6,14.08294478]
[1732563482957,15.0396,239.71,239.58,14.08294478]
[1732563483150,20.0,239.68,239.57,14.08294478]
[1732563483467,20.0,239.68,239.55,14.08294478]
[1732563483968,15.0396,239.71,239.61,14.08294478]
[1732563484281,15.0396,239.71,239.63,14.08294478]
[1732563484444,15.0396,239.71,239.67,14.08294478]
[1732563484845,10.0,239.88,239.56,15.43759]
[1732563484846,15.9932,239.77,239.68,14.08294478]
[1732563485151,15.9932,239.77,239.7,14.08294478]
[1732563485563,15.9932,239.77,239.72,14.08294478]
[1732563485773,15.9932,239.77,239.73,14.08294478]
[1732563486143,15.9932,239.77,239.71,14.08294478]
[1732563486851,15.9932,239.77,239.73,14.08294478]
[1732563487064,16.6066,239.84,239.75,14.08294478]
[1732563487657,16.6066,239.84,239.78,14.08294478]
[1732563487874,16.6066,239.84,239.8,14.08294478]
[1732563488144,16.6066,239.84,239.76,14.08294478]
[1732563488551,16.6066,239.84,239.74,14.08294478]
[1732563488773,16.6066,239.84,239.7,14.08294478]
[1732563488970,16.6066,239.84,239.69,14.08294478]
[1732563489152,16.6066,239.84,239.71,14.08294478]
[1732563489573,16.6066,239.84,239.73,14.08294478]
[1732563489776,16.6066,239.84,239.74,14.08294478]
[1732563489949,16.6066,239.84,239.75,14.08294478]
[1732563490152,16.6066,239.84,239.77,14.08294478]
[1732563490359,16.6066,239.84,239.8,14.08294478]
[1732563490566,16.6066,239.84,239.78,14.08294478]
[1732563490975,16.6066,239.84,239.81,14.08294478]
[1732563491179,23.1869,239.91,239.81,14.08294478]
[1732563491383,23.1869,239.91,239.83,14.08294478]
[1732563491752,23.1869,239.91,239.84,14.08294478]
[1732563492275,20.0,239.88,239.82,14.08294478]
[1732563492652,20.0,239.88,239.8,14.08294478]
[1732563493053,20.0,239.88,239.74,4.1711]
[1732563493054,10.59194767,239.97,239.85,14.08294478]
[1732563493281,10.59194767,239.97,239.86,14.08294478]
[1732563494460,20.0,239.93,239.86,14.08294478]
[1732563494779,19.5,239.93,239.86,14.08294478]
[1732563495149,10.59194767,239.97,239.89,14.08294478]
[1732563495354,10.59194767,239.97,239.91,14.08294478]
[1732563495748,10.59194767,239.97,239.93,14.08294478]
[1732563496175,10.59194767,239.97,239.92,14.08294478]
[1732563496368,10.59194767,239.97,239.95,14.08294478]
[1732563496557,10.59194767,239.97,239.94,14.08294478]
[1732563497270,0.4764682,239.97,239.96,14.08294478]
[1732563498481,0.4764682,239.97,239.96,37.85982878]
[1732563498690,16.4751,240.1,239.97,23.776884]
[1732563498977,6.1529,240.15,240.08,14.08294478]
[1732563498978,22.628,240.15,240.08,14.08294478]
[1732563499175,22.628,240.15,240.09,14.08294478]
[1732563499377,22.628,240.15,240.07,14.08294478]
[1732563500256,22.628,240.15,240.06,14.08294478]
[1732563500476,22.628,240.15,240.08,14.08294478]
[1732563500864,22.628,240.15,240.07,14.08294478]
[1732563501386,20.0,240.12,240.03,14.08294478]
[1732563501592,23.776884,240.11,239.99,14.08294478]
[1732563502079,22.628,240.15,240.06,14.08294478]
[1732563502272,22.628,240.15,240.08,14.08294478]
[1732563502775,16.4751,240.15,240.11,14.08294478]
[1732563503788,16.4751,240.15,240.07,14.08294478]
[1732563504157,16.4751,240.15,240.09,14.08294478]
[1732563504577,16.4751,240.15,240.11,14.08294478]
[1732563505280,10.10751385,240.18,240.14,14.08294478]
[1732563505462,23.1555682,240.21,240.14,14.08294478]
[1732563505463,16.7935682,240.21,240.14,14.08294478]
[1732563505777,16.2935682,240.21,240.14,14.08294478]
[1732563507488,16.2935682,240.21,240.06,14.08294478]
[1732563508366,30.0,240.13,240.06,14.08294478]
[1732563509576,30.0,240.13,240.04,14.08294478]
[1732563510178,20.0,240.1,240.02,14.08294478]
[1732563510359,20.0,240.1,240.04,14.08294478]
[1732563510360,30.0,240.08,240.04,14.08294478]
[1732563510976,30.0,240.08,240.06,14.08294478]
[1732563512279,30.0,240.08,240.04,14.08294478]
[1732563512483,30.0,240.08,240.02,14.08294478]
[1732563512796,30.0,240.08,239.93,10.4194]
[1732563512797,20.0,240.05,239.99,14.08294478]
[1732563512964,20.0,240.05,239.92,6.1695]
[1732563512965,30.0,240.03,239.97,14.08294478]
[1732563513165,30.0,240.03,240.01,14.08294478]
[1732563513477,30.0,240.03,240.02,14.08294478]
[1732563515476,30.0,240.03,240.01,14.08294478]
[1732563515679,30.0,240.03,240.02,14.08294478]
[1732563515876,20.0,240.06,240.02,14.08294478]
[1732563516085,15.3709,240.09,240.04,14.08294478]
[1732563516394,15.3709,240.09,239.92,16.1695]
[1732563516395,30.0,240.05,240.0,14.08294478]
[1732563516567,30.0,240.05,240.04,14.08294478]
[1732563518583,30.0,240.05,240.02,14.08294478]
[1732563518766,30.0,240.05,239.98,14.08294478]
[1732563518970,30.0,240.05,239.96,14.08294478]
[1732563519183,20.0,240.02,239.96,14.08294478]
[1732563520299,20.0,240.02,240.0,14.08294478]
[1732563520475,30.0,240.05,240.0,14.08294478]
[1732563520880,30.0,240.05,240.01,14.08294478]
[1732563521195,20.0,240.02,239.97,14.08294478]
[1732563521401,20.0,240.02,239.98,14.08294478]
[1732563521573,20.0,240.02,239.97,14.08294478]
[1732563521775,20.0,240.02,239.96,14.08294478]
[1732563522383,20.0,240.02,239.98,14.08294478]
[1732563523083,20.0,240.02,239.96,14.08294478]
[1732563523490,20.0,240.02,239.9,14.08294478]
[1732563523491,26.5138,240.02,239.9,14.08294478]
[1732563523791,20.0,239.98,239.91,14.08294478]
[1732563525402,20.0,239.98,239.89,14.08294478]
[1732563526102,20.0,239.98,239.91,14.08294478]
[1732563527591,20.0,239.98,239.96,14.08294478]
[1732563527796,20.0,239.98,239.94,14.08294478]
[1732563527992,15.6499,240.01,239.94,14.08294478]
[1732563528172,20.0,239.98,239.94,14.08294478]
[1732563528372,20.0,239.98,239.92,14.08294478]
[1732563529901,15.6499,240.01,239.96,14.08294478]
[1732563530199,15.6499,240.01,239.98,14.08294478]
[1732563530387,30.0,240.05,239.98,14.08294478]
[1732563530581,30.0,240.05,239.96,14.08294478]
[1732563531790,20.0,240.02,239.96,14.08294478]
[1732563533201,20.0,240.02,239.98,14.08294478]
[1732563533396,20.0,240.02,239.96,14.08294478]
[1732563534208,20.0,240.02,239.92,14.08294478]
[1732563534398,20.0,240.02,239.94,14.08294478]
[1732563535177,20.0,240.02,239.96,14.08294478]
[1732563535581,20.0,240.02,239.94,14.08294478]
[1732563535991,20.0,240.02,239.96,14.08294478]
[1732563536707,20.0,240.02,239.94,14.08294478]
[1732563536914,20.0,240.02,239.9,14.08294478]
[1732563537216,20.0,240.02,239.92,14.08294478]
[1732563538513,20.0,240.02,239.94,14.08294478]
[1732563538692,20.0,240.02,239.96,14.08294478]
[1732563538892,20.0,240.02,239.94,14.08294478]
[1732563539090,23.776884,240.01,239.92,14.08294478]
[1732563539311,20.0,239.98,239.9,14.08294478]
[1732563539713,20.0,239.94,239.88,14.08294478]
[1732563540393,23.776884,239.99,239.88,8.76374103]
[1732563540612,23.776884,239.99,239.81,6.3374]
[1732563540613,20.0,239.96,239.9,8.76374103]
[1732563541326,20.0,239.92,239.86,8.76374103]
[1732563541608,20.0,239.92,239.82,8.76374103]
[1732563542782,20.0,239.92,239.76,4.1708]
[1732563542986,20.0,239.92,239.82,8.76374103]
[1732563543206,20.0,239.92,239.76,36.71142503]
[1732563543207,16.3046,239.95,239.89,8.76374103]
[1732563543992,16.3046,239.95,239.91,8.76374103]
[1732563544403,16.3046,239.95,239.79,0.25098]
[1732563544404,16.3046,239.95,239.9,14.019616]
[1732563545214,16.3046,239.95,239.92,14.019616]
[1732563545587,20.0,239.98,239.92,14.019616]
[1732563545920,15.0366,240.01,239.92,14.019616]
[1732563546292,15.0366,240.01,239.94,14.019616]
[1732563546593,15.0366,240.01,239.92,14.019616]
[1732563547814,20.0,239.98,239.92,14.019616]
[1732563549097,20.0,239.98,239.94,14.019616]
[1732563549914,20.0,239.98,239.88,14.019616]
[1732563550306,20.0,239.98,239.9,14.019616]
[1732563550715,20.0,239.98,239.88,14.019616]
[1732563551105,20.0,239.94,239.84,14.019616]
[1732563551422,20.0,239.89,239.8,14.019616]
[1732563551803,20.0,239.88,239.8,14.019616]
[1732563552003,23.776884,239.87,239.7,4.1717]
[1732563552214,20.0,239.8,239.69,14.019616]
[1732563552928,20.0,239.8,239.73,14.019616]
[1732563553232,20.0,239.8,239.75,14.019616]
[1732563553418,15.6603,239.83,239.76,14.019616]
[1732563554309,15.6603,239.83,239.75,14.019616]
[1732563554514,20.0,239.8,239.71,14.019616]
[1732563554814,15.6603,239.83,239.75,14.019616]
[1732563555430,15.6603,239.83,239.78,14.019616]
[1732563555644,15.6603,239.83,239.79,14.019616]
[1732563556132,20.0,239.87,239.79,14.019616]
[1732563556429,20.0,239.87,239.75,14.019616]
[1732563556728,20.0,239.87,239.71,14.019616]
[1732563557331,20.0,239.83,239.71,14.019616]
[1732563557711,20.0,239.83,239.73,14.019616]
[1732563557912,20.0,239.87,239.75,14.019616]
[1732563558124,20.0,239.83,239.75,14.019616]
[1732563558313,20.0,239.83,239.73,14.019616]
[1732563559313,20.0,239.83,239.75,14.019616]
[1732563560319,20.0,239.83,239.77,14.019616]
[1732563560521,23.776884,239.89,239.8,14.019616]
[1732563561227,23.776884,239.89,239.68,38.200064]
[1732563561228,23.776884,239.89,239.78,14.019616]
[1732563561435,23.776884,239.89,239.68,4.1722]
[1732563561611,23.776884,239.89,239.74,14.019616]
[1732563561922,23.776884,239.85,239.74,14.019616]
[1732563562129,94.75406669,239.9,239.76,14.019616]
[1732563562130,20.0,239.82,239.76,14.019616]
[1732563562321,20.0,239.86,239.78,14.019616]
[1732563562631,24.75406669,239.9,239.8,14.019616]
[1732563562845,24.75406669,239.9,239.78,14.019616]
[1732563563337,24.75406669,239.9,239.84,14.019616]
[1732563564025,24.75406669,239.9,239.82,14.019616]
[1732563564534,24.75406669,239.9,239.83,8.76747739]
[1732563565534,24.75406669,239.9,239.85,8.76747739]
[1732563566837,24.75406669,239.9,239.83,8.76747739]
[1732563567141,24.75406669,239.9,239.81,8.76747739]
[1732563567344,20.0,239.87,239.81,8.76747739]
[1732563568640,20.0,239.87,239.79,8.76747739]
[1732563568949,20.0,239.87,239.83,8.76747739]
[1732563569133,20.0,239.87,239.81,8.76747739]
[1732563569516,20.0,239.87,239.76,8.76747739]
[1732563569517,20.0,239.87,239.83,8.76747739]
[1732563570041,20.0,239.87,239.81,8.76747739]
[1732563570721,20.0,239.87,239.83,8.76747739]
[1732563571426,20.0,239.87,239.81,8.76747739]
[1732563571916,20.0,239.87,239.79,8.76747739]